[Event "December 12 Late 2023"]
[Site "https://www.chess.com"]
[Date "2023.12.12"]
[Round "5"]
[White "Tokhirjonova, Gulrukhbegim"]
[Black "Balla, Tamas-Kristof"]
[Result "1-0"]
[Board "97"]
[TimeControl "180+1"]
[WhiteFideId "14203626"]
[BlackFideId "1208497"]
[WhiteElo "2635"]
[BlackElo "2385"]
[WhiteTeam "USA"]
[BlackTeam "ROU"]
[WhiteClock "0:01:26"]
[BlackClock "0:00:30"]

1. e4 {[%clk 0:02:53]}  c5 {[%clk 0:02:59]} 2. Nf3 {[%clk 0:02:53]}  Nc6 {[%clk 0:02:59]} 3. Nc3 {[%clk 0:02:53]}  g6 {[%clk 0:02:59]} 4. Bc4 {[%clk 0:02:53]}  Bg7 {[%clk 0:02:57]} 5. O-O {[%clk 0:02:54]}  e6 {[%clk 0:02:57]} 6. Re1 {[%clk 0:02:53]}  Nge7 {[%clk 0:02:51]} 7. d3 {[%clk 0:02:54]}  O-O {[%clk 0:02:50]} 8. a4 {[%clk 0:02:53]}  d5 {[%clk 0:02:49]} 9. Ba2 {[%clk 0:02:52]}  d4 {[%clk 0:02:39]} 10. Ne2 {[%clk 0:02:52]}  e5 {[%clk 0:02:40]} 11. h3 {[%clk 0:02:46]}  Kh8 {[%clk 0:02:33]} 12. Ng3 {[%clk 0:02:45]}  f5 {[%clk 0:02:29]} 13. exf5 {[%clk 0:02:44]}  Nxf5 {[%clk 0:02:30]} 14. Bg5 {[%clk 0:02:43]}  Qc7 {[%clk 0:02:13]} 15. Qd2 {[%clk 0:02:39]}  Nxg3 {[%clk 0:02:12]} 16. fxg3 {[%clk 0:02:39]}  Bxh3 {[%clk 0:02:13]} 17. Bh6 {[%clk 0:01:53]}  Bg4 {[%clk 0:02:07]} 18. Bxg7+ {[%clk 0:01:51]}  Qxg7 {[%clk 0:02:07]} 19. Ng5 {[%clk 0:01:48]}  Rae8 {[%clk 0:01:25]} 20. Rf1 {[%clk 0:01:46]}  Bf5 {[%clk 0:01:15]} 21. g4 {[%clk 0:01:41]}  Bxg4 {[%clk 0:01:14]} 22. Nf7+ {[%clk 0:01:41]}  Rxf7 {[%clk 0:01:03]} 23. Rxf7 {[%clk 0:01:41]}  Qg8 {[%clk 0:00:56]} 24. Qh6 {[%clk 0:01:28]}  Be6 {[%clk 0:00:44]} 25. Bxe6 {[%clk 0:01:28]}  Rxe6 {[%clk 0:00:45]} 26. Raf1 {[%clk 0:01:28]}  Re8 {[%clk 0:00:30]} 27. Rf8 {[%clk 0:01:26]} 1-0

[Event "December 12 Late 2023"]
[Site "https://www.chess.com"]
[Date "2023.12.12"]
[Round "5"]
[White "Kleiman, Jake"]
[Black "Buenafe Moya, Javier"]
[Result "1-0"]
[Board "98"]
[TimeControl "180+1"]
[WhiteFideId "2020041"]
[BlackFideId "2206412"]
[WhiteElo "2622"]
[BlackElo "2379"]
[WhiteTeam "USA"]
[BlackTeam "ESP"]
[WhiteClock "0:01:22"]
[BlackClock "0:00:00"]

1. e4 {[%clk 0:03:00]}  e5 {[%clk 0:02:55]} 2. Nf3 {[%clk 0:03:01]}  Nc6 {[%clk 0:02:54]} 3. Bc4 {[%clk 0:03:01]}  Bc5 {[%clk 0:02:53]} 4. d3 {[%clk 0:03:02]}  Nf6 {[%clk 0:02:52]} 5. c3 {[%clk 0:03:02]}  O-O {[%clk 0:02:50]} 6. O-O {[%clk 0:03:02]}  d5 {[%clk 0:02:49]} 7. exd5 {[%clk 0:03:02]}  Nxd5 {[%clk 0:02:50]} 8. Re1 {[%clk 0:03:02]}  Bg4 {[%clk 0:02:46]} 9. h3 {[%clk 0:03:02]}  Bh5 {[%clk 0:02:46]} 10. Nbd2 {[%clk 0:03:02]}  Nb6 {[%clk 0:02:45]} 11. Bb5 {[%clk 0:03:02]}  f6 {[%clk 0:02:20]} 12. Ne4 {[%clk 0:03:00]}  Be7 {[%clk 0:02:02]} 13. Ng3 {[%clk 0:02:58]}  Bf7 {[%clk 0:02:00]} 14. d4 {[%clk 0:02:52]}  exd4 {[%clk 0:01:57]} 15. Bxc6 {[%clk 0:02:42]}  bxc6 {[%clk 0:01:55]} 16. Nxd4 {[%clk 0:02:42]}  Bd6 {[%clk 0:01:42]} 17. Nxc6 {[%clk 0:02:32]}  Qd7 {[%clk 0:01:37]} 18. Ne7+ {[%clk 0:02:29]}  Kh8 {[%clk 0:01:35]} 19. Nef5 {[%clk 0:02:29]}  Rfe8 {[%clk 0:01:30]} 20. Rxe8+ {[%clk 0:02:25]}  Rxe8 {[%clk 0:01:28]} 21. Nxd6 {[%clk 0:02:24]}  cxd6 {[%clk 0:01:25]} 22. b3 {[%clk 0:02:21]}  Bd5 {[%clk 0:01:13]} 23. c4 {[%clk 0:02:19]}  Bb7 {[%clk 0:01:12]} 24. Bf4 {[%clk 0:02:14]}  Qc6 {[%clk 0:01:11]} 25. f3 {[%clk 0:02:14]}  d5 {[%clk 0:01:08]} 26. cxd5 {[%clk 0:02:10]}  Nxd5 {[%clk 0:01:08]} 27. Qd4 {[%clk 0:02:04]}  Nxf4 {[%clk 0:01:04]} 28. Qxf4 {[%clk 0:02:02]}  Qb6+ {[%clk 0:00:56]} 29. Kh2 {[%clk 0:01:59]}  Qf2 {[%clk 0:00:51]} 30. Rd1 {[%clk 0:01:32]}  h6 {[%clk 0:00:41]} 31. Qg4 {[%clk 0:01:25]}  Qc2 {[%clk 0:00:00]} 32. Rd7 {[%clk 0:01:22]} 1-0

[Event "December 12 Late 2023"]
[Site "https://www.chess.com"]
[Date "2023.12.12"]
[Round "5"]
[White "Kokoszczynski, Jan"]
[Black "Nita, Lucian"]
[Result "1-0"]
[Board "99"]
[TimeControl "180+1"]
[WhiteFideId "1174460"]
[BlackFideId "1206923"]
[WhiteElo "2619"]
[BlackElo "2367"]
[WhiteTeam "POL"]
[BlackTeam "ROU"]
[WhiteClock "0:00:15"]
[BlackClock "0:00:00"]

1. c4 {[%clk 0:03:00]}  d6 {[%clk 0:03:00]} 2. d4 {[%clk 0:03:00]}  Nf6 {[%clk 0:03:01]} 3. Nc3 {[%clk 0:03:00]}  e5 {[%clk 0:03:01]} 4. Nf3 {[%clk 0:02:57]}  Nc6 {[%clk 0:02:58]} 5. e4 {[%clk 0:02:51]}  g6 {[%clk 0:02:52]} 6. d5 {[%clk 0:02:48]}  Nb8 {[%clk 0:02:51]} 7. h3 {[%clk 0:02:48]}  Bg7 {[%clk 0:02:51]} 8. Be3 {[%clk 0:02:46]}  O-O {[%clk 0:02:51]} 9. g3 {[%clk 0:02:45]}  Nfd7 {[%clk 0:02:49]} 10. g4 {[%clk 0:02:29]}  a5 {[%clk 0:02:44]} 11. g5 {[%clk 0:02:22]}  f5 {[%clk 0:02:34]} 12. gxf6 {[%clk 0:02:20]}  Nxf6 {[%clk 0:02:34]} 13. Ng5 {[%clk 0:02:15]}  Na6 {[%clk 0:02:29]} 14. Be2 {[%clk 0:02:13]}  h6 {[%clk 0:02:27]} 15. Ne6 {[%clk 0:02:12]}  Bxe6 {[%clk 0:02:26]} 16. dxe6 {[%clk 0:02:13]}  Qe7 {[%clk 0:02:23]} 17. Rg1 {[%clk 0:02:12]}  Kh7 {[%clk 0:02:19]} 18. Qd2 {[%clk 0:02:04]}  Qxe6 {[%clk 0:02:19]} 19. O-O-O {[%clk 0:02:05]}  Nc5 {[%clk 0:02:06]} 20. Kb1 {[%clk 0:01:38]}  Ncxe4 {[%clk 0:01:52]} 21. Nxe4 {[%clk 0:01:38]}  Nxe4 {[%clk 0:01:52]} 22. Qc2 {[%clk 0:01:38]}  Nxf2 {[%clk 0:01:44]} 23. Rdf1 {[%clk 0:01:29]}  Nxh3 {[%clk 0:01:40]} 24. Rxf8 {[%clk 0:01:29]}  Rxf8 {[%clk 0:01:37]} 25. Rxg6 {[%clk 0:01:30]}  Qf5 {[%clk 0:01:23]} 26. Bd3 {[%clk 0:01:30]}  e4 {[%clk 0:01:19]} 27. Bxe4 {[%clk 0:01:28]}  Qf1+ {[%clk 0:01:18]} 28. Bc1 {[%clk 0:01:27]}  Kh8 {[%clk 0:01:15]} 29. Bg2 {[%clk 0:01:06]}  Qe1 {[%clk 0:00:56]} 30. Bxh3 {[%clk 0:01:04]}  Rf2 {[%clk 0:00:55]} 31. Re6 {[%clk 0:00:37]}  Qg1 {[%clk 0:00:16]} 32. Re8+ {[%clk 0:00:36]}  Rf8 {[%clk 0:00:10]} 33. Rxf8+ {[%clk 0:00:32]}  Bxf8 {[%clk 0:00:09]} 34. Qf5 {[%clk 0:00:31]}  Kg7 {[%clk 0:00:06]} 35. Qd7+ {[%clk 0:00:23]}  Kf6 {[%clk 0:00:02]} 36. Qe6+ {[%clk 0:00:18]}  Kg7 {[%clk 0:00:00]} 37. Qxh6+ {[%clk 0:00:15]} 1-0

[Event "December 12 Late 2023"]
[Site "https://www.chess.com"]
[Date "2023.12.12"]
[Round "5"]
[White "Shapiro, Daniel"]
[Black "Spata, German"]
[Result "1-0"]
[Board "101"]
[TimeControl "180+1"]
[WhiteFideId "2001780"]
[BlackFideId "113026"]
[WhiteElo "2296"]
[BlackElo "2605"]
[WhiteTeam "USA"]
[BlackTeam "ARG"]
[WhiteClock "0:00:06"]
[BlackClock "0:00:00"]

1. d4 {[%clk 0:03:00]}  e6 {[%clk 0:02:44]} 2. c4 {[%clk 0:02:58]}  Nf6 {[%clk 0:02:42]} 3. g3 {[%clk 0:02:57]}  d5 {[%clk 0:02:42]} 4. Nf3 {[%clk 0:02:56]}  Bb4+ {[%clk 0:02:42]} 5. Bd2 {[%clk 0:02:54]}  Be7 {[%clk 0:02:42]} 6. Bg2 {[%clk 0:02:53]}  O-O {[%clk 0:02:43]} 7. Qc2 {[%clk 0:02:52]}  c6 {[%clk 0:02:44]} 8. O-O {[%clk 0:02:52]}  Ne4 {[%clk 0:02:44]} 9. Bc1 {[%clk 0:02:45]}  f5 {[%clk 0:02:44]} 10. b3 {[%clk 0:02:41]}  Bd7 {[%clk 0:02:44]} 11. Bb2 {[%clk 0:02:39]}  Be8 {[%clk 0:02:44]} 12. Nbd2 {[%clk 0:02:38]}  Bh5 {[%clk 0:02:44]} 13. Rfe1 {[%clk 0:02:30]}  Nd7 {[%clk 0:02:43]} 14. Rac1 {[%clk 0:02:06]}  g5 {[%clk 0:02:39]} 15. Ne5 {[%clk 0:01:54]}  Nxe5 {[%clk 0:02:35]} 16. dxe5 {[%clk 0:01:54]}  Bg6 {[%clk 0:02:31]} 17. Nxe4 {[%clk 0:01:18]}  fxe4 {[%clk 0:02:28]} 18. Qd2 {[%clk 0:01:04]}  g4 {[%clk 0:02:20]} 19. cxd5 {[%clk 0:00:49]}  exd5 {[%clk 0:01:57]} 20. h3 {[%clk 0:00:45]}  Qd7 {[%clk 0:01:40]} 21. Qh6 {[%clk 0:00:30]}  Qf5 {[%clk 0:01:17]} 22. hxg4 {[%clk 0:00:20]}  Qe6 {[%clk 0:00:24]} 23. f4 {[%clk 0:00:16]}  exf3 {[%clk 0:00:23]} 24. exf3 {[%clk 0:00:15]}  Rf7 {[%clk 0:00:17]} 25. Kh2 {[%clk 0:00:15]}  Bf8 {[%clk 0:00:16]} 26. Qe3 {[%clk 0:00:15]}  Bg7 {[%clk 0:00:16]} 27. Bh3 {[%clk 0:00:15]}  Re8 {[%clk 0:00:14]} 28. f4 {[%clk 0:00:15]}  d4 {[%clk 0:00:11]} 29. Qxd4 {[%clk 0:00:14]}  Rd7 {[%clk 0:00:11]} 30. Qe3 {[%clk 0:00:13]}  Rd3 {[%clk 0:00:12]} 31. Qe2 {[%clk 0:00:14]}  Qd5 {[%clk 0:00:11]} 32. Rcd1 {[%clk 0:00:13]}  Rd8 {[%clk 0:00:10]} 33. Rxd3 {[%clk 0:00:13]}  Bxd3 {[%clk 0:00:11]} 34. Qe3 {[%clk 0:00:11]}  Qa5 {[%clk 0:00:10]} 35. f5 {[%clk 0:00:10]}  Qxa2 {[%clk 0:00:10]} 36. Qf2 {[%clk 0:00:08]}  Qxb3 {[%clk 0:00:07]} 37. f6 {[%clk 0:00:08]}  Rf8 {[%clk 0:00:07]} 38. g5 {[%clk 0:00:09]}  Bg6 {[%clk 0:00:06]} 39. e6 {[%clk 0:00:07]}  Bxf6 {[%clk 0:00:03]} 40. gxf6 {[%clk 0:00:06]}  Qd5 {[%clk 0:00:00]} 41. e7 {[%clk 0:00:06]} 1-0

[Event "December 12 Late 2023"]
[Site "https://www.chess.com"]
[Date "2023.12.12"]
[Round "5"]
[White "Crevatin, Leo"]
[Black "Sarkar, Justin"]
[Result "1-0"]
[Board "102"]
[TimeControl "180+1"]
[WhiteFideId "1726307"]
[BlackFideId "2010011"]
[WhiteElo "2596"]
[BlackElo "2292"]
[WhiteTeam "SWE"]
[BlackTeam "USA"]
[WhiteClock "0:00:54"]
[BlackClock "0:00:00"]

1. d4 {[%clk 0:03:00]}  Nf6 {[%clk 0:02:42]} 2. c4 {[%clk 0:02:59]}  g6 {[%clk 0:02:39]} 3. Nc3 {[%clk 0:02:58]}  Bg7 {[%clk 0:02:38]} 4. e4 {[%clk 0:02:58]}  d6 {[%clk 0:02:37]} 5. Bd3 {[%clk 0:02:54]}  O-O {[%clk 0:02:14]} 6. Nge2 {[%clk 0:02:53]}  Na6 {[%clk 0:02:13]} 7. O-O {[%clk 0:02:51]}  e5 {[%clk 0:02:08]} 8. d5 {[%clk 0:02:50]}  Nc5 {[%clk 0:02:02]} 9. Bc2 {[%clk 0:02:50]}  a5 {[%clk 0:02:01]} 10. Ng3 {[%clk 0:02:44]}  h5 {[%clk 0:01:51]} 11. Bg5 {[%clk 0:02:41]}  Qe8 {[%clk 0:01:45]} 12. Qd2 {[%clk 0:02:35]}  Nh7 {[%clk 0:01:41]} 13. Bh6 {[%clk 0:02:34]}  h4 {[%clk 0:01:37]} 14. Nge2 {[%clk 0:02:28]}  f5 {[%clk 0:01:24]} 15. Bxg7 {[%clk 0:02:22]}  Kxg7 {[%clk 0:01:25]} 16. f4 {[%clk 0:02:22]}  fxe4 {[%clk 0:01:15]} 17. Nxe4 {[%clk 0:02:23]}  Nxe4 {[%clk 0:01:13]} 18. Bxe4 {[%clk 0:02:23]}  Bf5 {[%clk 0:01:10]} 19. Bxf5 {[%clk 0:02:16]}  Rxf5 {[%clk 0:01:04]} 20. fxe5 {[%clk 0:02:15]}  Rxf1+ {[%clk 0:00:35]} 21. Rxf1 {[%clk 0:02:16]}  Qxe5 {[%clk 0:00:35]} 22. Nd4 {[%clk 0:02:14]}  Nf8 {[%clk 0:00:32]} 23. Re1 {[%clk 0:02:07]}  Qf6 {[%clk 0:00:24]} 24. Qe3 {[%clk 0:01:55]}  Kg8 {[%clk 0:00:07]} 25. Rf1 {[%clk 0:01:35]}  Qe5 {[%clk 0:00:05]} 26. Qxe5 {[%clk 0:01:35]}  dxe5 {[%clk 0:00:06]} 27. Nf3 {[%clk 0:01:36]}  e4 {[%clk 0:00:05]} 28. Nxh4 {[%clk 0:01:36]}  Re8 {[%clk 0:00:05]} 29. Re1 {[%clk 0:01:32]}  Kg7 {[%clk 0:00:05]} 30. g3 {[%clk 0:01:30]}  Nd7 {[%clk 0:00:04]} 31. b3 {[%clk 0:01:21]}  a4 {[%clk 0:00:03]} 32. Re3 {[%clk 0:01:07]}  Nc5 {[%clk 0:00:03]} 33. Ng2 {[%clk 0:01:03]}  a3 {[%clk 0:00:02]} 34. Nf4 {[%clk 0:01:00]}  g5 {[%clk 0:00:02]} 35. Ne2 {[%clk 0:00:56]}  Nd3 {[%clk 0:00:02]} 36. Nc3 {[%clk 0:00:56]}  Nb4 {[%clk 0:00:01]} 37. Nb5 {[%clk 0:00:54]}  c6 {[%clk 0:00:00]} 38. Nxa3 {[%clk 0:00:54]} 1-0

[Event "December 12 Late 2023"]
[Site "https://www.chess.com"]
[Date "2023.12.12"]
[Round "5"]
[White "Bhandari, Krish"]
[Black "Chylewski, Patryk"]
[Result "1/2-1/2"]
[Board "105"]
[TimeControl "180+1"]
[WhiteFideId "30955106"]
[BlackFideId "1186191"]
[WhiteElo "2119"]
[BlackElo "2508"]
[WhiteTeam "USA"]
[BlackTeam "POL"]
[WhiteClock "0:00:06"]
[BlackClock "0:00:04"]

1. d4 {[%clk 0:02:55]}  Nf6 {[%clk 0:02:59]} 2. c3 {[%clk 0:02:55]}  d5 {[%clk 0:02:52]} 3. Bg5 {[%clk 0:02:55]}  Ne4 {[%clk 0:02:50]} 4. Be3 {[%clk 0:02:54]}  Bf5 {[%clk 0:02:47]} 5. Nd2 {[%clk 0:02:53]}  Nd6 {[%clk 0:02:42]} 6. g3 {[%clk 0:02:49]}  e6 {[%clk 0:02:42]} 7. Bh3 {[%clk 0:02:48]}  Be7 {[%clk 0:02:39]} 8. f3 {[%clk 0:02:44]}  O-O {[%clk 0:02:36]} 9. Bxf5 {[%clk 0:02:30]}  exf5 {[%clk 0:02:35]} 10. Nh3 {[%clk 0:02:28]}  c6 {[%clk 0:02:28]} 11. Qc2 {[%clk 0:02:21]}  Re8 {[%clk 0:02:25]} 12. O-O-O {[%clk 0:02:17]}  Bf6 {[%clk 0:02:21]} 13. Qd3 {[%clk 0:02:12]}  Qa5 {[%clk 0:02:05]} 14. Kb1 {[%clk 0:02:07]}  Qa6 {[%clk 0:01:49]} 15. Bf4 {[%clk 0:01:43]}  Qxd3+ {[%clk 0:01:43]} 16. exd3 {[%clk 0:01:43]}  Nb5 {[%clk 0:01:41]} 17. a4 {[%clk 0:01:38]}  g5 {[%clk 0:01:28]} 18. Bxb8 {[%clk 0:01:35]}  Nxc3+ {[%clk 0:01:22]} 19. bxc3 {[%clk 0:01:34]}  Raxb8 {[%clk 0:01:22]} 20. Rhe1 {[%clk 0:01:34]}  Red8 {[%clk 0:01:22]} 21. Nb3 {[%clk 0:01:26]}  b6 {[%clk 0:01:20]} 22. Kc2 {[%clk 0:01:25]}  Kg7 {[%clk 0:01:19]} 23. f4 {[%clk 0:01:20]}  g4 {[%clk 0:01:15]} 24. Nf2 {[%clk 0:01:17]}  h5 {[%clk 0:01:14]} 25. h4 {[%clk 0:01:15]}  Rbc8 {[%clk 0:01:11]} 26. a5 {[%clk 0:01:11]}  c5 {[%clk 0:01:10]} 27. axb6 {[%clk 0:01:11]}  axb6 {[%clk 0:01:10]} 28. dxc5 {[%clk 0:01:08]}  bxc5 {[%clk 0:01:11]} 29. d4 {[%clk 0:00:54]}  cxd4 {[%clk 0:01:03]} 30. Nxd4 {[%clk 0:00:55]}  Kg6 {[%clk 0:01:03]} 31. Re3 {[%clk 0:00:47]}  Rc4 {[%clk 0:01:02]} 32. Red3 {[%clk 0:00:37]}  Rdc8 {[%clk 0:00:57]} 33. Kd2 {[%clk 0:00:37]}  Bxd4 {[%clk 0:00:44]} 34. cxd4 {[%clk 0:00:30]}  Rc2+ {[%clk 0:00:45]} 35. Ke1 {[%clk 0:00:23]}  Re8+ {[%clk 0:00:46]} 36. Kf1 {[%clk 0:00:22]}  Ree2 {[%clk 0:00:47]} 37. Nh1 {[%clk 0:00:21]}  Rh2 {[%clk 0:00:46]} 38. Kg1 {[%clk 0:00:15]}  Rcg2+ {[%clk 0:00:45]} 39. Kf1 {[%clk 0:00:16]}  Ra2 {[%clk 0:00:45]} 40. Kg1 {[%clk 0:00:13]}  Rhg2+ {[%clk 0:00:38]} 41. Kf1 {[%clk 0:00:13]}  Rh2 {[%clk 0:00:39]} 42. Kg1 {[%clk 0:00:13]}  Rag2+ {[%clk 0:00:32]} 43. Kf1 {[%clk 0:00:13]}  f6 {[%clk 0:00:14]} 44. Ra3 {[%clk 0:00:04]}  Rb2 {[%clk 0:00:13]} 45. Kg1 {[%clk 0:00:04]}  Rhg2+ {[%clk 0:00:13]} 46. Kf1 {[%clk 0:00:04]}  Rh2 {[%clk 0:00:14]} 47. Kg1 {[%clk 0:00:05]}  Rbg2+ {[%clk 0:00:06]} 48. Kf1 {[%clk 0:00:05]}  Rxh1+ {[%clk 0:00:03]} 49. Kxg2 {[%clk 0:00:05]}  Rxd1 {[%clk 0:00:04]} 50. Ra4 {[%clk 0:00:03]}  Rd2+ {[%clk 0:00:04]} 51. Kg1 {[%clk 0:00:04]}  Kf7 {[%clk 0:00:04]} 52. Kf1 {[%clk 0:00:04]}  Ke6 {[%clk 0:00:04]} 53. Ra6+ {[%clk 0:00:04]}  Ke7 {[%clk 0:00:04]} 54. Ra7+ {[%clk 0:00:05]}  Kd6 {[%clk 0:00:04]} 55. Ra6+ {[%clk 0:00:05]}  Ke7 {[%clk 0:00:04]} 56. Ra7+ {[%clk 0:00:05]}  Kf8 {[%clk 0:00:05]} 57. Ra8+ {[%clk 0:00:06]}  Kg7 {[%clk 0:00:05]} 58. Ra7+ {[%clk 0:00:06]}  Kg6 {[%clk 0:00:05]} 59. Ra4 {[%clk 0:00:06]}  Rd3 {[%clk 0:00:06]} 60. Kf2 {[%clk 0:00:06]}  Kf7 {[%clk 0:00:03]} 61. Ra7+ {[%clk 0:00:05]}  Kf8 {[%clk 0:00:03]} 62. Ra8+ {[%clk 0:00:05]}  Kg7 {[%clk 0:00:04]} 63. Ra7+ {[%clk 0:00:05]}  Kg6 {[%clk 0:00:04]} 64. Ra4 {[%clk 0:00:05]}  Rd1 {[%clk 0:00:04]} 65. Ke2 {[%clk 0:00:04]}  Rg1 {[%clk 0:00:04]} 66. Kf2 {[%clk 0:00:05]}  Rd1 {[%clk 0:00:04]} 67. Ke2 {[%clk 0:00:06]}  Rg1 {[%clk 0:00:04]} 68. Kf2 {[%clk 0:00:06]}  Rd1 {[%clk 0:00:04]} 1/2-1/2

[Event "December 12 Late 2023"]
[Site "https://www.chess.com"]
[Date "2023.12.12"]
[Round "5"]
[White "Ghosh, Chanchal Kumer"]
[Black "Herman, Matthew"]
[Result "0-1"]
[Board "106"]
[TimeControl "180+1"]
[WhiteFideId "10201858"]
[BlackFideId "2028964"]
[WhiteElo "2094"]
[BlackElo "2494"]
[WhiteTeam "BAN"]
[BlackTeam "USA"]
[WhiteClock "0:00:00"]
[BlackClock "0:00:08"]

1. e4 {[%clk 0:03:00]}  c5 {[%clk 0:02:59]} 2. Nf3 {[%clk 0:03:01]}  e6 {[%clk 0:02:59]} 3. d4 {[%clk 0:03:01]}  cxd4 {[%clk 0:03:00]} 4. Nxd4 {[%clk 0:03:02]}  a6 {[%clk 0:03:00]} 5. Bd3 {[%clk 0:03:02]}  Nc6 {[%clk 0:03:00]} 6. Nxc6 {[%clk 0:03:02]}  bxc6 {[%clk 0:02:59]} 7. c4 {[%clk 0:03:02]}  e5 {[%clk 0:02:59]} 8. O-O {[%clk 0:03:02]}  Bc5 {[%clk 0:02:59]} 9. Re1 {[%clk 0:03:00]}  Nf6 {[%clk 0:02:59]} 10. Be3 {[%clk 0:03:00]}  Bxe3 {[%clk 0:02:58]} 11. Rxe3 {[%clk 0:03:00]}  Qb6 {[%clk 0:02:46]} 12. Qc2 {[%clk 0:02:39]}  d6 {[%clk 0:02:46]} 13. Nc3 {[%clk 0:02:31]}  c5 {[%clk 0:02:33]} 14. h3 {[%clk 0:02:26]}  Be6 {[%clk 0:02:32]} 15. b3 {[%clk 0:02:18]}  h5 {[%clk 0:02:29]} 16. Rd1 {[%clk 0:02:14]}  h4 {[%clk 0:02:28]} 17. Bf1 {[%clk 0:02:10]}  Ke7 {[%clk 0:02:23]} 18. Red3 {[%clk 0:02:06]}  Rad8 {[%clk 0:02:23]} 19. Qd2 {[%clk 0:02:02]}  Rh7 {[%clk 0:01:55]} 20. Qe3 {[%clk 0:01:32]}  Rd7 {[%clk 0:01:28]} 21. f4 {[%clk 0:01:09]}  exf4 {[%clk 0:01:24]} 22. Qxf4 {[%clk 0:01:10]}  Qc7 {[%clk 0:00:52]} 23. Be2 {[%clk 0:01:04]}  Qb8 {[%clk 0:00:20]} 24. Bf3 {[%clk 0:00:54]}  Qc7 {[%clk 0:00:20]} 25. Re1 {[%clk 0:00:53]}  Kf8 {[%clk 0:00:18]} 26. Red1 {[%clk 0:00:47]}  Ke7 {[%clk 0:00:18]} 27. R1d2 {[%clk 0:00:41]}  Rh6 {[%clk 0:00:16]} 28. Nd1 {[%clk 0:00:37]}  Ne8 {[%clk 0:00:10]} 29. Ne3 {[%clk 0:00:31]}  Kf8 {[%clk 0:00:10]} 30. Nf5 {[%clk 0:00:28]}  Bxf5 {[%clk 0:00:10]} 31. exf5 {[%clk 0:00:27]}  Kg8 {[%clk 0:00:09]} 32. Bd5 {[%clk 0:00:18]}  Re7 {[%clk 0:00:09]} 33. Kh1 {[%clk 0:00:15]}  Re5 {[%clk 0:00:08]} 34. Rf2 {[%clk 0:00:14]}  Qe7 {[%clk 0:00:08]} 35. Kh2 {[%clk 0:00:13]}  Nf6 {[%clk 0:00:06]} 36. Qg5 {[%clk 0:00:11]}  Rh5 {[%clk 0:00:05]} 37. Qf4 {[%clk 0:00:11]}  Rhxf5 {[%clk 0:00:05]} 38. Qxf5 {[%clk 0:00:11]}  Rxf5 {[%clk 0:00:06]} 39. Rxf5 {[%clk 0:00:12]}  Qe1 {[%clk 0:00:06]} 40. Rdf3 {[%clk 0:00:11]}  Kf8 {[%clk 0:00:05]} 41. Rg5 {[%clk 0:00:06]}  Qd2 {[%clk 0:00:04]} 42. Rgf5 {[%clk 0:00:06]}  Qe1 {[%clk 0:00:04]} 43. Rg5 {[%clk 0:00:06]}  Qe2 {[%clk 0:00:04]} 44. Rgf5 {[%clk 0:00:03]}  Ke7 {[%clk 0:00:05]} 45. Rf2 {[%clk 0:00:02]}  Qe1 {[%clk 0:00:05]} 46. R5f3 {[%clk 0:00:02]}  Qa1 {[%clk 0:00:04]} 47. Re2+ {[%clk 0:00:02]}  Kf8 {[%clk 0:00:05]} 48. Rfe3 {[%clk 0:00:02]}  g6 {[%clk 0:00:05]} 49. Rf3 {[%clk 0:00:02]}  Nxd5 {[%clk 0:00:06]} 50. cxd5 {[%clk 0:00:02]}  Kg7 {[%clk 0:00:06]} 51. Ref2 {[%clk 0:00:02]}  f5 {[%clk 0:00:07]} 52. Re2 {[%clk 0:00:03]}  Qd4 {[%clk 0:00:07]} 53. Rfe3 {[%clk 0:00:02]}  Qxd5 {[%clk 0:00:07]} 54. Re7+ {[%clk 0:00:03]}  Kf6 {[%clk 0:00:07]} 55. Ra7 {[%clk 0:00:03]}  g5 {[%clk 0:00:07]} 56. Re8 {[%clk 0:00:02]}  g4 {[%clk 0:00:07]} 57. Rf8+ {[%clk 0:00:00]}  Ke5 {[%clk 0:00:08]} 0-1

[Event "December 12 Late 2023"]
[Site "https://www.chess.com"]
[Date "2023.12.12"]
[Round "5"]
[White "Nechitaylo, Nikita"]
[Black "Rees, Ioan"]
[Result "0-1"]
[Board "108"]
[TimeControl "180+1"]
[WhiteFideId "34138161"]
[BlackFideId "1801236"]
[WhiteElo "2289"]
[BlackElo "2529"]
[WhiteTeam "UKR"]
[BlackTeam "WLS"]
[WhiteClock "0:00:01"]
[BlackClock "0:00:57"]

1. d4 {[%clk 0:03:00]}  d5 {[%clk 0:02:59]} 2. c4 {[%clk 0:03:01]}  c6 {[%clk 0:02:59]} 3. cxd5 {[%clk 0:03:02]}  cxd5 {[%clk 0:02:59]} 4. Bf4 {[%clk 0:03:02]}  Nf6 {[%clk 0:02:57]} 5. e3 {[%clk 0:03:03]}  Nc6 {[%clk 0:02:57]} 6. Nc3 {[%clk 0:03:04]}  e6 {[%clk 0:02:53]} 7. Nf3 {[%clk 0:03:03]}  Bd6 {[%clk 0:02:51]} 8. Bg3 {[%clk 0:03:02]}  O-O {[%clk 0:02:50]} 9. Bd3 {[%clk 0:03:02]}  a6 {[%clk 0:02:47]} 10. a3 {[%clk 0:03:03]}  Re8 {[%clk 0:02:41]} 11. Rc1 {[%clk 0:03:03]}  Ne7 {[%clk 0:02:36]} 12. Ne5 {[%clk 0:02:55]}  Nf5 {[%clk 0:02:33]} 13. Bxf5 {[%clk 0:02:40]}  exf5 {[%clk 0:02:34]} 14. O-O {[%clk 0:02:40]}  Be6 {[%clk 0:02:31]} 15. Bh4 {[%clk 0:02:33]}  Be7 {[%clk 0:02:30]} 16. f4 {[%clk 0:02:23]}  Ne4 {[%clk 0:02:27]} 17. Bxe7 {[%clk 0:01:57]}  Qxe7 {[%clk 0:02:28]} 18. Nxe4 {[%clk 0:01:57]}  dxe4 {[%clk 0:02:16]} 19. d5 {[%clk 0:01:39]}  Red8 {[%clk 0:02:14]} 20. dxe6 {[%clk 0:01:26]}  Rxd1 {[%clk 0:02:13]} 21. exf7+ {[%clk 0:01:27]}  Kh8 {[%clk 0:02:02]} 22. Rfxd1 {[%clk 0:01:26]}  g6 {[%clk 0:01:52]} 23. Rd7 {[%clk 0:01:18]}  Qf6 {[%clk 0:01:48]} 24. Rxb7 {[%clk 0:00:54]}  Rd8 {[%clk 0:01:40]} 25. Rbc7 {[%clk 0:00:46]}  Qb6 {[%clk 0:01:32]} 26. Rc8 {[%clk 0:00:31]}  Kg7 {[%clk 0:01:27]} 27. f8=Q+ {[%clk 0:00:04]}  Rxf8 {[%clk 0:01:25]} 28. R1c7+ {[%clk 0:00:05]}  Kh6 {[%clk 0:01:21]} 29. Nc4 {[%clk 0:00:03]}  Rxc8 {[%clk 0:01:15]} 30. Rxc8 {[%clk 0:00:02]}  Qb3 {[%clk 0:01:13]} 31. Kf2 {[%clk 0:00:02]}  Qc2+ {[%clk 0:01:12]} 32. Kg3 {[%clk 0:00:02]}  Qe2 {[%clk 0:01:11]} 33. Kh3 {[%clk 0:00:01]}  Qf1 {[%clk 0:01:04]} 34. Kg3 {[%clk 0:00:01]}  a5 {[%clk 0:01:00]} 35. h3 {[%clk 0:00:01]}  a4 {[%clk 0:01:00]} 36. Ne5 {[%clk 0:00:01]}  Qe1+ {[%clk 0:00:57]} 37. Kh2 {[%clk 0:00:01]}  Qxe3 {[%clk 0:00:57]} 38. Rc7 {[%clk 0:00:02]}  Qxf4+ {[%clk 0:00:57]} 39. g3 {[%clk 0:00:01]}  Qxe5 {[%clk 0:00:57]} 0-1